fUST/lending_fUST_20260201
["ID","MTS","AMOUNT","RATE_DAILY","PERIOD"]
[404161469,1769887859332,-294.72415654,0.00036697,2]
[404161470,1769887859344,-52235.44829335,0.00036697,2]
[404161471,1769887859353,-643.54349728,0.00036697,2]
[404161472,1769887859363,-1375.30912305,0.00036697,2]
[404161473,1769887859373,-158.16649023,0.00036697,2]
[404161474,1769887859383,-968.2453051,0.00036697,2]
[404161475,1769887859392,-21787.77564503,0.00036697,2]
[404161476,1769887859402,-709.49854537,0.00036697,2]
[404161477,1769887859411,-6361.83076416,0.00036697,2]
[404161478,1769887859422,-159.17567,0.00036697,2]
[404161479,1769887859431,-1734.2061534,0.00036697,2]
[404161480,1769887859440,-7557.19449131,0.00036697,2]
[404161481,1769887859450,-512.51283611,0.00036697,2]
[404161482,1769887859459,-185.661807,0.00036697,2]
[404161483,1769887859468,-472.39557315,0.00036697,2]
[404161484,1769887859478,-30748.24755637,0.00036697,2]
[404161485,1769887859487,-190.97205853,0.00036697,2]
[404161486,1769887859496,-1206.5330604,0.00036697,2]
[404161487,1769887859505,-1410.26178838,0.00036697,2]
[404161488,1769887859514,-864.57899455,0.00036697,2]
[404161489,1769887859522,-657.40696742,0.00036697,2]
[404161490,1769887859531,-2920.0,0.00036697,2]
[404161491,1769887859540,-193744.83883441,0.00036697,2]
[404161492,1769887859551,-200.04371493,0.00036697,2]
[404161493,1769887859560,-389.21178056,0.00036697,2]
[404161494,1769887859570,-605.5062385,0.00036697,2]
[404161495,1769887859580,-203.26646945,0.00036697,2]
[404161496,1769887859590,-3178.25566413,0.00036697,2]
[404161497,1769887859599,-168.15859355,0.00036697,2]
[404161498,1769887859609,-178880.76970936,0.00036697,2]
[404161499,1769887859620,-151.77483509,0.00036697,2]
[404161500,1769887859631,-261.0027218,0.00036697,2]
[404161501,1769887859641,-3803.44495352,0.00036697,2]
[404161502,1769887859650,-675.43566846,0.00036697,2]
[404161503,1769887859659,-1676.30213801,0.00036697,2]
[404161504,1769887859669,-326.75503275,0.00036697,2]
[404161505,1769887859678,-173298.62771791,0.00036697,5]
[404161506,1769887859687,-328.57716098,0.00036697,2]
[404161507,1769887859697,-700.36502519,0.00036697,5]
[404161508,1769887859706,-258.44354571,0.00036697,2]
[404161509,1769887859716,-605.5062385,0.00036697,2]
[404161510,1769887859725,-605.5062385,0.00036697,2]
[404161511,1769887859734,-605.5062385,0.00036697,2]
[404161512,1769887859744,-605.5062385,0.00036697,2]
[404161513,1769887859753,-353.508,0.0011,120]
[404161514,1769887859768,-166.89899801,0.00115,2]
[404161515,1769887859777,-154603.25794639,0.0015,120]
[404161516,1769887859786,-50000.0,0.002,120]
[404161517,1769887859795,-1000.0,0.002,120]
[404161518,1769887859805,-630.0,0.00217976,120]
[404161519,1769887859816,-2151.0,0.00217976,120]
[404161520,1769887859825,-502.234,0.00217976,120]
[404161521,1769887859834,-716.0,0.00217976,2]
[404161522,1769887859843,-182.056,0.00217976,120]
[404161523,1769887859854,-630.0,0.00220976,120]
[404161524,1769887859863,-2151.0,0.00220976,120]
[404161525,1769887859872,-418.0,0.00220976,120]
[404161526,1769887859881,-716.0,0.00220976,2]
[404161527,1769887859891,-179.0,0.00220976,120]
[404161528,1769887859900,-630.0,0.00223976,120]
[404161529,1769887859909,-418.0,0.00223976,120]
[404161530,1769887859919,-716.0,0.00223976,2]
[404161531,1769887859927,-179.0,0.00223976,120]
[404161532,1769887859936,-630.0,0.00226976,120]
[404161533,1769887859945,-418.0,0.00226976,120]
[404161534,1769887859954,-716.0,0.00226976,2]
[404161535,1769887859963,-179.0,0.00226976,120]
[404161536,1769887859972,-630.0,0.00229976,120]
[404161537,1769887859981,-418.0,0.00229976,120]
[404161538,1769887859990,-716.0,0.00229976,2]
[404161539,1769887860000,-179.0,0.00229976,120]
[404161540,1769887860009,-630.0,0.00232976,120]
[404161541,1769887860018,-418.0,0.00232976,120]
[404161542,1769887860027,-716.0,0.00232976,2]
[404161543,1769887860105,-179.0,0.00232976,120]
[404161544,1769887860117,-630.0,0.00235976,120]
[404161545,1769887860127,-418.0,0.00235976,120]
[404161546,1769887860136,-716.0,0.00235976,2]
[404161547,1769887860145,-179.0,0.00235976,120]
[404161548,1769887860155,-630.0,0.00238976,120]
[404161549,1769887860165,-418.0,0.00238976,120]
[404161550,1769887860175,-360.153,0.00238976,2]
[404161551,1769887860186,-179.0,0.00238976,120]
[404161552,1769887860195,-418.0,0.00241976,120]
[404161553,1769887860205,-179.0,0.00241976,120]
[404161554,1769887860214,-418.0,0.00244976,120]
[404161555,1769887860223,-179.0,0.00244976,120]
[404161556,1769887860234,-418.0,0.00247976,120]
[404161557,1769887860244,-179.0,0.00247976,120]
[404161558,1769887860256,-169.32172863,0.0025,120]
[404161559,1769887860267,-418.0,0.00250976,120]
[404161560,1769887860277,-179.0,0.00250976,120]
[404161561,1769887860287,-179.0,0.00253976,120]
[404161562,1769887860297,-179.0,0.00256976,120]
[404161563,1769887860308,-179.0,0.00259976,120]
[404161564,1769887860319,-179.0,0.00262976,120]
[404161565,1769887860329,-179.0,0.00265976,120]
[404161566,1769887860339,-179.0,0.00268976,120]
[404161567,1769887860352,-179.0,0.00271976,120]
[404161568,1769887860362,-151.0,0.00273973,120]
[404161569,1769887860371,-151.0,0.00273973,120]
[404161570,1769887860382,-151.0,0.00273973,120]
[404161571,1769887860391,-151.0,0.00273973,120]
[404161572,1769887860400,-151.0,0.00273973,120]
[404161573,1769887860410,-177.012067,0.00273973,120]
[404161574,1769887860420,-151.0,0.00273973,60]
[404161575,1769887860431,-182.864764,0.00273973,60]
[404161576,1769887860440,-151.0,0.00273973,120]
[404161577,1769887860450,-151.0,0.00273973,120]
[404161578,1769887860460,-151.0,0.00273973,120]
[404161579,1769887860470,-151.0,0.00273973,120]
[404161580,1769887860479,-151.0,0.00273973,120]
[404161581,1769887860489,-151.0,0.00273973,120]
[404161582,1769887860498,-151.0,0.00273973,120]
[404161583,1769887860508,-151.0,0.00273973,120]
[404161584,1769887860517,-151.0,0.00273973,120]
[404161585,1769887860527,-151.0,0.00273973,120]
[404161586,1769887860536,-151.0,0.00273973,120]
[404161587,1769887860546,-151.0,0.00273973,120]
[404161588,1769887860555,-151.0,0.00273973,120]
[404161589,1769887860568,-184.711374,0.00273973,120]
[404161590,1769887860578,-151.0,0.00273973,120]
[404161591,1769887860588,-151.0,0.00273973,120]
[404161592,1769887860598,-151.0,0.00273973,120]
[404161593,1769887860607,-178.305353,0.00273973,120]
[404161594,1769887860618,-151.0,0.00273973,120]
[404161595,1769887860627,-151.0,0.00273973,120]
[404161596,1769887860638,-151.0,0.00273973,120]
[404161597,1769887860647,-271.81383713,0.00273973,120]
[404161598,1769887860656,-238.641739,0.00273973,120]
[404161599,1769887860666,-151.0,0.00273973,120]
[404161600,1769887860675,-151.0,0.00273973,120]
[404161601,1769887860684,-151.0,0.00273973,120]
[404161602,1769887860694,-151.0,0.00273973,120]
[404161603,1769887860706,-151.0,0.00273973,120]
[404161604,1769887860715,-151.0,0.00273973,120]
[404161605,1769887860725,-151.0,0.00273973,120]
[404161606,1769887860734,-151.0,0.00273973,120]
[404161607,1769887860745,-189.489535,0.00273973,120]
[404161608,1769887860754,-3035.71,0.002997,80]
[404161609,1769887860764,-50000.0,0.003,120]
[404161610,1769887860773,-40938.43642083,0.003,120]
[404161611,1769887860786,-200.0,0.003014,120]
[404161612,1769887860798,-10972.86927256,0.0033488,73]
[404161613,1769887860808,-347.67499658,0.00345498,3]
[404161614,1769887860818,-10387.13663552,0.00349998,120]
[404161615,1769887860828,-246.09856684,0.00371,30]
[404161616,1769887860837,-1910.57332288,0.00377996,3]
[404161617,1769887860848,-436.67,0.0039914,120]
[404161618,1769887860859,-50000.0,0.004,120]
[404161619,1769887860870,-710.0,0.00472791,31]
[404161620,1769887860881,-150000.0,0.005,120]
[404161621,1769887860892,-50000.0,0.005,120]
[404161622,1769887860902,-757.6518084,0.005,120]
[404161623,1769887860912,-200.0,0.005228,120]
[404161624,1769887860922,-500.0,0.00547945,120]
[404161625,1769887860931,-500.0,0.00547945,120]
[404161626,1769887860941,-500.0,0.00547945,120]
[404161627,1769887860951,-500.0,0.00547945,120]
[404161628,1769887860960,-500.0,0.00547945,120]
[404161629,1769887860970,-500.0,0.00547945,120]
[404161630,1769887860981,-500.0,0.00547945,120]
[404161631,1769887860991,-500.0,0.00547945,120]
[404161632,1769887861001,-500.0,0.00547945,120]
[404161633,1769887861011,-500.0,0.00547945,120]
[404161634,1769887861023,-500.0,0.00547945,120]
[404161635,1769887861033,-500.0,0.00547945,120]
[404161636,1769887861043,-500.0,0.00547945,120]
[404161637,1769887861051,-500.0,0.00547945,120]
[404161638,1769887861062,-500.0,0.00547945,120]
[404161639,1769887861071,-500.0,0.00547945,120]
[404161640,1769887861080,-500.0,0.00547945,120]
[404161641,1769887861089,-500.0,0.00547945,120]
[404161642,1769887861098,-500.0,0.00547945,120]
[404161643,1769887861108,-500.00000034,0.00547945,120]
[404161644,1769887861118,-1316.6591369,0.00570939,30]
[404161645,1769887861127,-6484.0,0.006,120]
[404161646,1769887861136,-10000.0,0.00654015,120]
[404161647,1769887861146,-7500.56112309,0.0068,120]
[404161648,1769887861155,-3664.12774786,0.00693,120]
[404161649,1769887861164,-155.88,0.007,120]
[404161650,1769887861174,-10500.0,0.0071,120]
[404161651,1769887861184,-30000.0,0.007288,120]
[404161652,1769887861193,-40912.15932982,0.00737,120]
[404161653,1769887861202,-40000.0,0.007388,120]
[404161654,1769887861211,-200.0,0.007441,120]
[404161655,1769887861220,-40000.0,0.007488,120]
[404161656,1769887861229,-50684.46121424,0.007499,120]
[404161657,1769887861238,-1000.0,0.0079,120]
[404161658,1769887861247,-10000.0,0.00795709,120]
[404161659,1769887861256,-274362.1742712,0.008,120]
[404161660,1769887861266,-710.0,0.00816776,31]
[404161661,1769887861275,-251518.41377172,0.008888,120]
[404161662,1769887861284,-200.0,0.009655,120]
[404161663,1769887861294,-10000.0,0.00968102,120]
[404161664,1769887861303,-3005.88004193,0.01,120]
[404161665,1769887861312,-200.0,0.010082,120]
[404161666,1769887861321,-400.0,0.01105364,120]
[404161667,1769887861330,-1316.6591369,0.01124559,30]
[404161668,1769887861340,-10000.0,0.01177845,120]
[404161669,1769887861352,-200.0,0.011869,120]
[404161670,1769887861361,-730.05,0.012,120]
[404161671,1769887861370,-166.79,0.014,2]
[404161672,1769887861380,-200.0,0.014083,120]
[404161673,1769887861391,-10000.0,0.01433028,120]
[404161674,1769887861401,-4137.40592923,0.01488076,77]
[404161675,1769887861413,-1000.0,0.015,120]
[404161676,1769887861423,-6578.495,0.016,98]
[404161677,1769887861434,-200.0,0.016297,120]
[404161678,1769887861445,-1316.6591369,0.01678179,30]
[404161679,1769887861455,-14613.8,0.016931,81]
[404161680,1769887861465,-5436.2,0.017,30]
[404161681,1769887861474,-10000.0,0.01743498,120]
[404161682,1769887861483,-200.0,0.01765863,120]
[404161683,1769887861494,-100000.0,0.0178,120]
[404161684,1769887861504,-6806.235,0.018,61]
[404161685,1769887861514,-6806.235,0.018,61]
[404161686,1769887861523,-200.0,0.01851,120]
[404161687,1769887861532,-150000.0,0.0188,120]
[404161688,1769887861542,-7417.51,0.0190338,66]
[404161689,1769887861551,-14568.6174,0.0198,76]
[404161690,1769887861560,-14568.6174,0.0198,76]
[404161691,1769887861571,-1389.30928634,0.01992629,3]
[404161692,1769887861580,-155.0,0.02,120]
[404161693,1769887861590,-177.36267086,0.02,120]
[404161694,1769887861600,-391.38159062,0.02,7]
[404161695,1769887861609,-500.0,0.02,120]
[404161696,1769887861619,-535.81217417,0.02,120]
[404161697,1769887861629,-500.0,0.02,120]
[404161698,1769887861639,-386.59123367,0.02,120]
[404161699,1769887861649,-175.14397604,0.02,120]
[404161700,1769887861659,-245.24450277,0.02,120]
[404161701,1769887861670,-200.0,0.020724,120]
[404161702,1769887861680,-10000.0,0.02121232,120]
[404161703,1769887861689,-155.0,0.02222,120]
[404161704,1769887861700,-1316.6591369,0.02231799,30]
[404161705,1769887861710,-200.0,0.022938,120]
[404161706,1769887861720,-1001.31416643,0.02449877,30]
[404161707,1769887861729,-160.0,0.0245232,3]
[404161708,1769887861740,-1000.0,0.025,120]
[404161709,1769887861750,-200.0,0.02513194,120]
[404161710,1769887861759,-200.0,0.025152,120]
[404161711,1769887861770,-200.0,0.02542858,120]
[404161712,1769887861781,-200.0,0.02543577,120]
[404161713,1769887861791,-10000.0,0.02580803,120]
[404161714,1769887861802,-200.0,0.02648289,120]
[404161715,1769887861814,-200.0,0.027366,120]
[404161716,1769887861883,-29999.999999,0.0278,120]
[404161717,1769887861899,-1316.6591369,0.0278542,30]
[404161718,1769887861909,-160.0,0.0288495,4]
[404161719,1769887861920,-160.0,0.0288495,5]
[404161720,1769887861930,-152.0,0.0293,120]
[404161721,1769887861941,-200.0,0.029579,120]
[404161722,1769887861953,-4691.61101149,0.029619,84]
[404161723,1769887861963,-157.82282567,0.02974192,120]
[404161724,1769887861974,-100000.0,0.0299,120]
[404161725,1769887861983,-155.0,0.03,120]
[404161726,1769887861993,-157.82282567,0.03013753,120]
[404161727,1769887862004,-157.82282567,0.03053288,120]
[404161728,1769887862013,-157.82282567,0.03092849,120]
[404161729,1769887862023,-6902.352542,0.03113977,83]
[404161730,1769887862032,-6902.352542,0.03113977,83]
[404161731,1769887862041,-10000.0,0.03139942,120]
[404161732,1769887862051,-200.0,0.031793,120]
[404161733,1769887862061,-6217.94655,0.032,103]
[404161734,1769887862071,-5965.81200559,0.03258,106]
[404161735,1769887862082,-7551.65,0.03321,104]
[404161736,1769887862091,-155.0,0.03333,120]
[404161737,1769887862100,-1316.6591369,0.0333904,30]
[404161738,1769887862110,-200.0,0.034007,120]
[404161739,1769887862119,-6942.23,0.034266,117]
[404161740,1769887862129,-6632.0,0.035,108]
[404161741,1769887862139,-1000.0,0.035,120]
[404161742,1769887862150,-200.0,0.036221,120]
[404161743,1769887862159,-6239.907118,0.036522,96]
[404161744,1769887862169,-5624.5,0.0372,97]
[404161745,1769887862179,-5624.5,0.0372,97]
[404161746,1769887862188,-149999.999999,0.03778,120]
[404161747,1769887862199,-20000.0,0.03820219,120]
[404161748,1769887862209,-200.0,0.038434,120]
[404161749,1769887862219,-1316.6591369,0.0389266,30]
[404161750,1769887862228,-3225.02848088,0.039,81]
[404161751,1769887862238,-152.0,0.0393,120]
[404161752,1769887862248,-100000.0,0.0399,120]
[404161753,1769887862258,-155.0,0.04,120]
[404161754,1769887862268,-22541.80802024,0.04,120]
[404161755,1769887862278,-169.9437508,0.04,120]
[404161756,1769887862287,-22541.80802024,0.04,120]
[404161757,1769887862299,-6785.2617,0.0404,61]
[404161758,1769887862310,-200.0,0.040648,120]
[404161759,1769887862322,-7118.9,0.04245,66]
[404161760,1769887862332,-200.0,0.042862,120]
[404161761,1769887862343,-14372.2,0.0432008,80]
[404161762,1769887862354,-155.0,0.04444,120]
[404161763,1769887862364,-1316.6591369,0.0444628,30]
[404161764,1769887862374,-860.50098701,0.045,120]
[404161765,1769887862385,-200.0,0.045076,120]
[404161766,1769887862394,-12917.736,0.046,99]
[404161767,1769887862404,-12917.736,0.046,99]
[404161768,1769887862413,-200.0,0.04632695,120]
[404161769,1769887862423,-30000.0,0.04647881,120]
[404161770,1769887862432,-7037.5025,0.04654,110]
[404161771,1769887862442,-7037.5025,0.04654,110]
[404161772,1769887862451,-200.0,0.04729,120]
[404161773,1769887862462,-7080.771587,0.04822,86]
[404161774,1769887862471,-7080.771587,0.04822,86]
[404161775,1769887862480,-6941.0,0.049,62]
[404161776,1769887862489,-6941.0,0.049,62]
[404161777,1769887862499,-152.0,0.0493,120]
[404161778,1769887862508,-200.0,0.049503,120]
[404161779,1769887862517,-100000.0,0.04978,120]
[404161780,1769887862528,-2591285.39481373,0.04979,120]
[404161781,1769887862574,1000.0,0.00035112,30]
[404161782,1769887862606,1000.0,0.00035112,30]
[404161783,1769887862638,1295.30282614,0.000332,117]
[404161784,1769887862671,715.0,0.00035112,30]
[404161785,1769887862703,1000.0,0.00038623,60]
[404161786,1769887862751,1000.0,0.00038623,60]
[404161787,1769887863293,1270.7557,0.00036697,2]
[404161788,1769887863326,1000.0,0.00038623,60]
[404161789,1769887863359,1270.7557,0.00036697,7]
[404161790,1769887863397,200.0,0.00036697,2]
[404161791,1769887863436,-355.95546049,0.00036697,7]
[404161792,1769887863475,617.4483716,0.00013268,2]
[404161793,1769887863565,-3810.70453951,0.00036697,7]
[404161794,1769887863576,-4166.66,0.00036697,7]
[404161795,1769887863586,-4166.66,0.00036697,7]
[404161796,1769887863595,-4166.66,0.00036697,7]
[404161797,1769887863604,-4166.66,0.00036697,7]
[404161798,1769887863614,-4166.66,0.00036697,7]
[404161799,1769887863623,-4166.66,0.00036697,7]
[404161800,1769887863676,2118.35,0.00036687,10]
[404161801,1769887863714,-4166.66,0.00036697,7]
[404161802,1769887863724,-1008.58583408,0.00036697,7]
[404161803,1769887863735,-3158.07416592,0.00036697,7]
[404161804,1769887863744,-4166.66,0.00036697,7]
[404161805,1769887864125,526.30212007,0.00019008,2]
[404161806,1769887864220,150.0,0.0004771,30]
[404161807,1769887864255,150.0,0.00065552,30]
[404161808,1769887864289,150.0,0.00074474,30]
[404161809,1769887864326,508.3023,0.00032877,10]
[404161810,1769887864362,200.4677,0.00033425,14]
[404161811,1769887864392,1765.29,0.00036687,10]
[404161812,1769887864446,500.0,0.00013699,2]
[404161813,1769887864478,1004.15902707,0.00014247,2]
[404161814,1769887864509,500.0,0.00013699,2]
[404161815,1769887864543,500.0,0.00013273,2]
[404161816,1769887866433,218.13697807,0.00031,120]
[404161817,1769887866892,261.9287712,0.00031,120]
[404161818,1769887866978,218.13697807,0.000319,120]
[404161819,1769887867374,500.0,0.00013699,2]
[404161820,1769887867448,500.0,0.00013699,2]
[404161821,1769887867484,500.0,0.00013273,2]
[404161822,1769887867535,976.6213963,0.00014368,2]
[404161823,1769887867569,288.80145324,0.00031,120]
[404161824,1769887867602,218.13697807,0.000329,120]
[404161825,1769887867637,1000.0,0.00013821,2]
[404161826,1769887867667,500.0,0.00013273,2]
[404161827,1769887867773,3000.0,0.00016012,2]
[404161828,1769887867806,1000.0,0.00013821,2]
[404161829,1769887867839,1265.852642,0.0001656,2]
[404161830,1769887867874,1500.0,0.00014368,2]
[404161831,1769887867905,2000.0,0.00014916,2]
[404161832,1769887867935,500.0,0.00013273,2]
[404161833,1769887867967,2500.0,0.00015464,2]
[404161834,1769887868003,2500.0,0.00015464,2]
[404161835,1769887868040,1000.0,0.00013821,2]
[404161836,1769887868074,1000.0,0.00016012,2]
[404161837,1769887868105,1500.0,0.00014368,2]
[404161838,1769887868136,2000.0,0.00014916,2]
[404161839,1769887868171,218.13697807,0.000339,120]
[404161840,1769887869225,218.13697807,0.000349,120]
[404161841,1769887869725,605.5062385,0.00036697,2]
[404161842,1769887869885,278.75906262,0.00031,120]
[404161843,1769887873343,501.34743043,0.00013699,2]
[404161844,1769887879612,204.69093765,0.00013273,2]
[404161845,1769887880808,76.12163192,0.00013273,2]
[404161846,1769887981244,150.0,0.00030137,120]
[404161847,1769888076164,1876.63410717,0.000131,2]
[404161848,1769888076190,3123.36589283,0.000131,2]
[404161849,1769888098459,4669.59616014,0.000131,2]
[404161852,1769888175733,782.16,0.00012329,2]
[404161853,1769888192969,500.0,0.00013271,2]
[404161854,1769888193000,500.0,0.00013271,2]
[404161855,1769888193050,500.0,0.00013271,2]
[404161856,1769888193083,406.39821167,0.00013271,2]
[404161857,1769888193124,500.0,0.00013271,2]
[404161858,1769888193158,500.0,0.00013271,2]
[404161859,1769888193189,500.0,0.00013271,2]
[404161860,1769888193218,438.43762904,0.00013271,2]
[404161861,1769888193247,500.0,0.00013271,2]
[404161862,1769888193283,500.0,0.00013271,2]
[404161863,1769888193313,500.0,0.00013271,2]
[404161864,1769888193346,500.0,0.00013271,2]
[404161865,1769888193376,649.23949279,0.00013271,2]
[404161866,1769888193406,500.0,0.00013271,2]
[404161867,1769888193436,500.0,0.00013271,2]
[404161868,1769888193467,649.23949279,0.00013271,2]
[404161869,1769888193494,500.0,0.00013271,2]
[404161870,1769888193523,500.0,0.00013271,2]
[404161871,1769888193554,649.23949279,0.00013271,2]
[404161872,1769888193584,207.45568092,0.00013271,2]
[404161873,1769888193822,-292.54431908,0.00013271,2]
[404161874,1769888193848,-234.77180649,0.00013271,2]
[404161875,1769888199419,-265.22819351,0.00013271,2]
[404161876,1769888199450,-649.23949279,0.00013271,2]
[404161877,1769888199483,-500.0,0.00013271,2]
[404161878,1769888199513,-500.0,0.00013271,2]
[404161879,1769888199544,-649.23949279,0.00013271,2]
[404161880,1769888199575,-529.2441255,0.00013271,2]
[404161881,1769888199607,-500.0,0.00013271,2]
[404161882,1769888199638,-649.23949279,0.00013271,2]
[404161883,1769888199670,-500.0,0.00013271,2]
[404161884,1769888199876,2450.26929658,0.00012057,2]
[404161885,1769888225422,-177.78373106,0.0001327,2]
[404161886,1769888231330,2450.26929658,0.00012057,2]
[404161887,1769888259667,2450.26929658,0.00012057,2]
[404161888,1769888280132,547.82,2.997e-05,10]
[404161889,1769888280406,547.82,2.997e-05,10]
[404161890,1769888285334,-237.31737076,0.0001327,2]
[404161891,1769888315363,-166.37776611,0.0001327,2]
[404161892,1769888318533,-446.35980214,0.0001327,2]
[404161893,1769888318558,-53.64019786,0.0001327,2]
[404161895,1769888320557,-219.10013129,0.0001327,2]
[404161896,1769888322504,-227.25967085,0.0001327,2]
[404161897,1769888322530,-209.51130293,0.0001327,2]
[404161898,1769888327014,-153.74374045,0.0001327,2]
[404161899,1769888328521,-136.74495662,0.0001327,2]
[404161900,1769888328545,-106.65848891,0.0001327,2]
[404161901,1769888331886,-411.22361531,0.0001327,2]
[404161902,1769888335234,-94.85546403,0.0001327,2]
[404161903,1769888335256,-169.91379791,0.0001327,2]
[404161904,1769888339776,-272.68459961,0.0001327,2]
[404161905,1769888341313,-57.40160248,0.0001327,2]
[404161906,1769888341336,-135.32705102,0.0001327,2]
[404161907,1769888350999,2182.52243108,0.00012077,2]
[404161908,1769888393330,2255.8627938,0.00042587,20]
[404161909,1769888396828,920.0,0.00042587,20]
[404161910,1769888439003,216.28797292,0.00012077,2]
[404161911,1769888480297,-524.2214709,0.00013269,2]
[404161912,1769888481803,-154.54,0.00013269,2]
[404161913,1769888559901,170.6405412,0.00012536,2]
[404161914,1769888602556,935.73309814,0.000131,2]
[404161915,1769888676073,-280.90216549,0.00013267,2]
[404161916,1769888678221,-219.09783451,0.00013267,2]
[404161917,1769888678245,-376.26553327,0.00013267,2]
[404161918,1769888722020,-300.0,0.00013266,2]
[404161919,1769888722044,-107.76396207,0.00013266,2]
[404161920,1769888723583,-500.0,0.00013266,2]
[404161921,1769888725651,-215.23784729,0.00013266,2]
[404161922,1769888728865,-376.99819064,0.00013266,2]
[404161923,1769888728890,-123.00180936,0.00013267,2]
[404161924,1769888765359,-0.73265737,0.00013267,2]
[404161925,1769888765382,-191.43713455,0.00013267,2]
[404161926,1769888770091,-152.63050372,0.00013267,2]
[404161927,1769888771559,-152.15411431,0.00013267,2]
[404161928,1769888773143,-3.77824742,0.00013267,2]
[404161929,1769888773172,-500.0,0.00013267,2]
[404161930,1769888773200,-301.09268363,0.00013267,2]
[404161931,1769888773229,-500.0,0.00013267,2]
[404161932,1769888773260,-500.0,0.00013267,2]
[404161933,1769888773289,-500.0,0.00013267,2]
[404161934,1769888773320,-500.0,0.00013267,2]
[404161935,1769888773350,-500.0,0.00013267,2]
[404161936,1769888773380,-500.0,0.00013267,2]
[404161937,1769888773408,-500.0,0.00013267,2]
[404161938,1769888773437,-500.0,0.00013267,2]
[404161939,1769888773772,-272.54134027,0.00013267,2]
[404161940,1769888775367,-227.45865973,0.00013267,2]
[404161941,1769888775389,-84.03680457,0.00013267,2]
[404161942,1769888785254,-415.96319543,0.00013267,2]
[404161943,1769888785286,-500.0,0.00013267,2]
[404161944,1769888785315,-500.0,0.00013267,2]
[404161945,1769888785347,-500.0,0.00013267,2]
[404161946,1769888785376,-500.0,0.00013267,2]
[404161947,1769888785408,-500.0,0.00013267,2]
[404161948,1769888785439,-343.5884677,0.00013267,2]
[404161949,1769888785469,-500.0,0.00013267,2]
[404161950,1769888785499,-500.0,0.00013267,2]
[404161951,1769888785528,-500.0,0.00013267,2]
[404161952,1769888795365,-500.0,0.00013267,2]
[404161953,1769888795387,-122.86830244,0.00013267,2]
[404161954,1769888808705,500.0,0.00036973,120]
[404161955,1769888808955,500.0,0.00036973,120]
[404161956,1769888809232,500.0,0.00036973,120]
[404161957,1769888809472,500.0,0.00036973,120]
[404161958,1769888809715,500.0,0.00036973,120]
[404161959,1769888809951,625.78000085,0.00036973,120]
[404161960,1769888810327,-177.13169756,0.00013267,2]
[404161961,1769888812685,-200.0,0.00013267,2]
[404161962,1769888812711,-83.33788778,0.00013267,2]
[404161963,1769888814207,-284.31209463,0.00013267,2]
[404161964,1769888815652,-132.35001759,0.00013267,2]
[404161965,1769888815683,-225.33758206,0.00013267,2]
[404161966,1769888837341,-355.44459331,0.00013267,2]
[404161967,1769888841422,-500.0,0.00013267,2]
[404161968,1769888842902,-279.61520694,0.00013267,2]
[404161969,1769888844540,-9626.91751374,0.00013267,2]
[404161970,1769888846124,-1376.14610508,0.00013267,2]
[404161971,1769888849812,5000.0,0.000131,2]